fUSD/lending_fUSD_20240624
["ID","MTS","AMOUNT","RATE_DAILY","PERIOD"]
[330324543,1719258232507,-329.76045481,0.00044657,120]
[330324544,1719258232549,-500.0,0.00044657,120]
[330324545,1719258232590,-500.0,0.00044657,120]
[330324546,1719258232629,-500.0,0.00044657,120]
[330324547,1719258232672,-500.0,0.00044657,120]
[330324548,1719258232713,-500.0,0.00044657,120]
[330324549,1719258232749,-500.0,0.00044657,120]
[330324550,1719258232786,-500.0,0.00044657,120]
[330324551,1719258232824,-500.0,0.00044657,120]
[330324552,1719258232860,-503.14966681,0.00044657,120]
[330324553,1719258232898,-500.0,0.00044657,120]
[330324554,1719258232936,-500.0,0.00044657,120]
[330324555,1719258232973,-500.0,0.00044657,120]
[330324556,1719258233013,-1042.74,0.00044657,120]
[330324557,1719258233050,-500.0,0.00044657,120]
[330324558,1719258233090,-500.0,0.00044657,120]
[330324559,1719258233130,-500.0,0.00044657,120]
[330324560,1719258233169,-500.0,0.00044657,120]
[330324561,1719258233207,-500.0,0.00044657,120]
[330324562,1719258233246,-500.0,0.00044657,120]
[330324563,1719258233281,-500.0,0.00044657,120]
[330324564,1719258233320,-1093.23,0.00044657,120]
[330324565,1719258233358,-500.0,0.00044657,120]
[330324566,1719258233396,-605.73,0.00044657,120]
[330324567,1719258233432,-500.0,0.00044657,120]
[330324568,1719258233470,-500.0,0.00044657,120]
[330324569,1719258233507,-500.0,0.00044657,120]
[330324570,1719258233545,-500.0,0.00044657,120]
[330324571,1719258233582,-150.0,0.00044657,120]
[330324572,1719258233619,-500.0,0.00044657,120]
[330324573,1719258233660,-199.48095493,0.00044657,120]
[330324574,1719258233697,-500.0,0.00044657,120]
[330324575,1719258233737,-785.26,0.00044657,120]
[330324576,1719258233775,-500.0,0.00044657,120]
[330324577,1719258233814,-500.0,0.00044657,120]
[330324578,1719258233849,-500.0,0.00044657,120]
[330324579,1719258233887,-500.0,0.00044657,120]
[330324580,1719258233924,-838.61,0.00044657,120]
[330324581,1719258233961,-485.0552341,0.00044657,120]
[330324582,1719258233999,-514.56194893,0.00044657,120]
[330324583,1719258234037,-500.0,0.00044657,120]
[330324584,1719258234075,-500.0,0.00044657,120]
[330324585,1719258234115,-500.0,0.00044657,120]
[330324586,1719258234153,-389.26572592,0.00044657,120]
[330324587,1719258234191,-500.0,0.00044657,120]
[330324588,1719258234229,-648.76887153,0.00044657,120]
[330324589,1719258234270,-509.86372848,0.00044657,120]
[330324590,1719258234315,-500.0,0.00044657,120]
[330324591,1719258234357,-500.0,0.00044657,120]
[330324592,1719258234398,-500.0,0.00044657,120]
[330324593,1719258234438,-500.0,0.00044657,120]
[330324594,1719258234477,-500.0,0.00044657,120]
[330324595,1719258234515,-500.0,0.00044657,120]
[330324596,1719258234555,-500.0,0.00044657,120]
[330324597,1719258234594,-500.0,0.00044657,120]
[330324598,1719258234635,-500.0,0.00044657,120]
[330324599,1719258234673,-500.0,0.00044657,120]
[330324600,1719258234712,-500.0,0.00044657,120]
[330324601,1719258234750,-500.0,0.00044657,120]
[330324602,1719258234788,-500.0,0.00044657,120]
[330324603,1719258234826,-500.0,0.00044657,120]
[330324604,1719258234866,-500.0,0.00044657,120]
[330324605,1719258234904,-500.0,0.00044657,120]
[330324606,1719258234942,-500.0,0.00044657,120]
[330324607,1719258234980,-545.65353973,0.00044657,120]
[330324608,1719258235020,-594.12,0.00044657,120]
[330324609,1719258235063,-512.07268965,0.00044657,120]
[330324610,1719258235109,-500.0,0.00044657,120]
[330324611,1719258235149,-500.0,0.00044657,120]
[330324612,1719258235187,-655.63,0.00044657,120]
[330324613,1719258235224,-428.69200636,0.00044657,120]
[330324614,1719258235262,-500.0,0.00044657,120]
[330324615,1719258235305,-849.72,0.00044657,120]
[330324616,1719258235346,-500.0,0.00044657,120]
[330324617,1719258235385,-500.0,0.00044657,120]
[330324618,1719258235425,-500.0,0.00044657,120]
[330324619,1719258235463,-512.11721858,0.00044657,120]
[330324620,1719258235504,-500.0,0.00044657,120]
[330324621,1719258235544,-500.0,0.00044657,120]
[330324622,1719258235583,-500.0,0.00044657,120]
[330324623,1719258235623,-529.21,0.00044657,120]
[330324624,1719258235667,-500.0,0.00044657,120]
[330324625,1719258235704,-500.0,0.00044657,120]
[330324626,1719258235746,-567.01,0.00044657,120]
[330324627,1719258235786,-500.0,0.00044657,120]
[330324628,1719258235825,-502.92919112,0.00044657,120]
[330324629,1719258235865,-500.0,0.00044657,120]
[330324630,1719258235910,-500.0,0.00044657,120]
[330324631,1719258235953,-500.0,0.00044657,120]
[330324632,1719258235996,-500.0,0.00044657,120]
[330324633,1719258236038,-500.0,0.00044657,120]
[330324634,1719258236083,-500.0,0.00044657,120]
[330324635,1719258236124,-500.0,0.00044657,120]
[330324636,1719258236165,-500.0,0.00044657,120]
[330324637,1719258236204,-505.29228638,0.00044657,120]
[330324638,1719258236244,-527.18980469,0.00044657,120]
[330324639,1719258236284,-500.0,0.00044657,120]
[330324640,1719258236327,-500.0,0.00044657,120]
[330324641,1719258236544,-500.0,0.00044657,120]
[330324642,1719258236583,-500.0,0.00044657,120]
[330324643,1719258236626,-500.0,0.00044657,120]
[330324644,1719258236666,-500.0,0.00044657,120]
[330324645,1719258236704,-500.0,0.00044657,120]
[330324646,1719258236743,-500.0,0.00044657,120]
[330324647,1719258236780,-500.0,0.00044657,120]
[330324648,1719258236818,-502.64344006,0.00044657,120]
[330324649,1719258236855,-500.0,0.00044657,120]
[330324650,1719258236891,-500.0,0.00044657,120]
[330324651,1719258236929,-500.0,0.00044657,120]
[330324652,1719258236969,-2788.04,0.00044657,120]
[330324653,1719258237009,-500.0,0.00044657,120]
[330324654,1719258237048,-500.0,0.00044657,120]
[330324655,1719258237088,-500.0,0.00044657,120]
[330324656,1719258237125,-500.0,0.00044657,120]
[330324657,1719258237163,-500.0,0.00044657,120]
[330324658,1719258237199,-1166.09,0.00044657,120]
[330324659,1719258237235,-500.0,0.00044657,120]
[330324660,1719258237272,-500.0,0.00044657,120]
[330324661,1719258237310,-427.50904215,0.00044657,120]
[330324662,1719258237352,-556.11324832,0.00044657,120]
[330324663,1719258237392,-500.0,0.00044657,120]
[330324664,1719258237436,-1262.68,0.00044657,120]
[330324665,1719258237482,-500.0,0.00044657,120]
[330324666,1719258237524,-383.12179789,0.00044657,120]
[330324667,1719258237562,-500.0,0.00044657,120]
[330324668,1719258237600,-500.0,0.00044657,120]
[330324669,1719258237637,-500.0,0.00044657,120]
[330324670,1719258237672,-790.48,0.00044657,120]
[330324671,1719258237712,-500.0,0.00044657,120]
[330324672,1719258237750,-500.0,0.00044657,120]
[330324673,1719258237789,-500.0,0.00044657,120]
[330324674,1719258237829,-500.0,0.00044657,120]
[330324675,1719258237867,-545.5424767,0.00044657,120]
[330324676,1719258237909,-346.33324095,0.00044657,120]
[330324677,1719258237948,-500.0,0.00044657,120]
[330324678,1719258237985,-559.23350216,0.00044657,120]
[330324679,1719258238024,-687.92,0.00044657,120]
[330324680,1719258238065,-500.0,0.00044657,120]
[330324681,1719258238110,-500.0,0.00044657,120]
[330324682,1719258238149,-500.0,0.00044657,120]
[330324683,1719258238188,-766.33,0.00044657,120]
[330324684,1719258238225,-500.0,0.00044657,120]
[330324685,1719258238263,-500.0,0.00044657,120]
[330324686,1719258238302,-765.44,0.00044657,120]
[330324687,1719258238341,-304.32488771,0.00044657,120]
[330324688,1719258238379,-500.0,0.00044657,120]
[330324689,1719258238416,-500.0,0.00044657,120]
[330324690,1719258238455,-1969.8,0.00044657,120]
[330324691,1719258238494,-500.0,0.00044657,120]
[330324692,1719258238533,-532.05896436,0.00044657,120]
[330324693,1719258238579,-500.0,0.00044657,120]
[330324694,1719258238621,-500.0,0.00044657,120]
[330324695,1719258238664,-1694.12,0.00044657,120]
[330324696,1719258238705,-824.95,0.00044657,120]
[330324697,1719258238746,-553.17,0.00044657,120]
[330324698,1719258238783,-500.0,0.00044657,120]
[330324699,1719258238823,-500.0,0.00044657,120]
[330324700,1719258238862,-1172.25,0.00044657,120]
[330324701,1719258238900,-571.93,0.00044657,120]
[330324702,1719258238938,-500.0,0.00044657,120]
[330324703,1719258238978,-675.94,0.00044657,120]
[330324704,1719258239017,-272.10221301,0.00044657,120]
[330324705,1719258239057,-819.57,0.00044657,120]
[330324706,1719258239108,-1195.67,0.00044657,120]
[330324707,1719258239151,-354.49740942,0.00044657,120]
[330324708,1719258239190,-500.0,0.00044657,120]
[330324709,1719258239229,-500.0,0.00044657,120]
[330324710,1719258239270,-667.67,0.00044657,120]
[330324711,1719258239309,-804.5,0.00044657,120]
[330324712,1719258239348,-294.89973297,0.00044657,120]
[330324713,1719258239387,-1165.11,0.00044657,120]
[330324714,1719258239427,-532.05088844,0.00044657,120]
[330324715,1719258239468,-500.0,0.00044657,120]
[330324716,1719258239507,-500.0,0.00044657,120]
[330324717,1719258239545,-500.0,0.00044657,120]
[330324718,1719258239584,-500.0,0.00044657,120]
[330324719,1719258239628,-1099.82,0.00044657,120]
[330324720,1719258239669,-816.17,0.00044657,120]
[330324721,1719258239710,-500.0,0.00044657,120]
[330324722,1719258239749,-500.0,0.00044657,120]
[330324723,1719258239786,-500.0,0.00044657,120]
[330324724,1719258239825,-500.0,0.00044657,120]
[330324725,1719258239864,-500.0,0.00044657,120]
[330324726,1719258239905,-627.61,0.00044657,120]
[330324727,1719258239945,-500.0,0.00044657,120]
[330324728,1719258239984,-500.0,0.00044657,120]
[330324729,1719258240025,-1399.72,0.00044657,120]
[330324730,1719258240068,-1021.58,0.00044657,120]
[330324731,1719258240111,-1516.79,0.00044657,120]
[330324732,1719258240153,-500.0,0.00044657,120]
[330324733,1719258240192,-500.0,0.00044657,120]
[330324734,1719258240231,-500.0,0.00044657,120]
[330324735,1719258240270,-500.0,0.00044657,120]
[330324736,1719258240309,-500.0,0.00044657,120]
[330324737,1719258240352,-1038.38,0.00044657,120]
[330324738,1719258240393,-1562.7,0.00044657,120]
[330324739,1719258240434,-500.0,0.00044657,120]
[330324740,1719258240476,-500.0,0.00044657,120]
[330324741,1719258240517,-2386.52,0.00044657,120]
[330324742,1719258240555,-500.0,0.00044657,120]
[330324743,1719258240599,-500.0,0.00044657,120]
[330324744,1719258240644,-651.41,0.00044657,120]
[330324745,1719258240685,-531.38,0.00044657,120]
[330324746,1719258240886,-1212.63,0.00044657,120]
[330324747,1719258240926,-500.0,0.00044657,120]
[330324748,1719258240966,-500.0,0.00044657,120]
[330324749,1719258241008,-500.0,0.00044657,120]
[330324750,1719258241048,-451.08178804,0.00044657,120]
[330324751,1719258241088,-500.0,0.00044657,120]
[330324752,1719258241126,-508.43,0.00044657,120]
[330324753,1719258241166,-500.0,0.00044657,120]
[330324754,1719258241205,-932.91,0.00044657,120]
[330324755,1719258241243,-500.0,0.00044657,120]
[330324756,1719258241282,-500.0,0.00044657,120]
[330324757,1719258241326,-500.0,0.00044657,120]
[330324758,1719258241368,-500.0,0.00044657,120]
[330324759,1719258241409,-164.71749687,0.00044657,120]
[330324760,1719258241449,-500.0,0.00044657,120]
[330324761,1719258241487,-630.93,0.00044657,120]
[330324762,1719258241526,-500.0,0.00044657,120]
[330324763,1719258241565,-164.20522873,0.00044657,120]
[330324764,1719258241607,-506.19,0.00044657,120]
[330324765,1719258241647,-844.64,0.00044657,120]
[330324766,1719258241686,-660.39,0.00044657,120]
[330324767,1719258241726,-500.83,0.00044657,120]
[330324768,1719258241766,-682.01,0.00044657,120]
[330324769,1719258241807,-2912.3,0.00044657,120]
[330324770,1719258241846,-2243.25,0.00044657,120]
[330324771,1719258241883,-763.57,0.00044657,120]
[330324772,1719258241920,-500.0,0.00044657,120]
[330324773,1719258241958,-500.0,0.00044657,120]
[330324774,1719258241996,-1080.37,0.00044657,120]
[330324775,1719258242035,-500.0,0.00044657,120]
[330324776,1719258242075,-775.89,0.00044657,120]
[330324777,1719258242116,-579.59,0.00044657,120]
[330324778,1719258242155,-712.8,0.00044657,120]
[330324779,1719258242194,-500.0,0.00044657,120]
[330324780,1719258242234,-500.0,0.00044657,120]
[330324781,1719258242272,-500.0,0.00044657,120]
[330324782,1719258242311,-500.0,0.00044657,120]
[330324783,1719258242353,-558.22,0.00044657,120]
[330324784,1719258242390,-2552.8,0.00044657,120]
[330324785,1719258242427,-500.0,0.00044657,120]
[330324786,1719258242466,-500.0,0.00044657,120]
[330324787,1719258242505,-500.0,0.00044657,120]
[330324788,1719258242543,-709.83,0.00044657,120]
[330324789,1719258242582,-500.0,0.00044657,120]
[330324790,1719258242622,-892.32,0.00044657,120]
[330324791,1719258242665,-500.0,0.00044657,120]
[330324792,1719258242702,-506.53312771,0.00044657,120]
[330324793,1719258242742,-816.66,0.00044657,120]
[330324794,1719258242780,-500.0,0.00044657,120]
[330324795,1719258242818,-2290.5,0.00044657,120]
[330324796,1719258242855,-500.0,0.00044657,120]
[330324797,1719258242894,-639.14,0.00044657,120]
[330324798,1719258242932,-500.0,0.00044657,120]
[330324799,1719258242969,-767.44,0.00044657,120]
[330324800,1719258243007,-500.0,0.00044657,120]
[330324801,1719258243048,-500.0,0.00044657,120]
[330324802,1719258243088,-847.35,0.00044657,120]
[330324803,1719258243128,-500.0,0.00044657,120]
[330324804,1719258243166,-500.0,0.00044657,120]
[330324805,1719258243206,-593.7132473,0.00044657,120]
[330324806,1719258243247,-500.0,0.00044657,120]
[330324807,1719258243285,-1992.92,0.00044657,120]
[330324808,1719258243330,-500.0,0.00044657,120]
[330324809,1719258243373,-500.0,0.00044657,120]
[330324810,1719258243413,-500.0,0.00044657,120]
[330324811,1719258243453,-500.0,0.00044657,120]
[330324812,1719258243492,-500.0,0.00044657,120]
[330324813,1719258243532,-500.0,0.00044657,120]
[330324814,1719258243574,-500.0,0.00044657,120]
[330324815,1719258243612,-611.14,0.00044657,120]
[330324816,1719258243652,-500.0,0.00044657,120]
[330324817,1719258243693,-500.0,0.00044657,120]
[330324818,1719258243734,-392.15,0.00044657,30]
[330324819,1719258243776,-510.53,0.00044657,120]
[330324820,1719258243823,-995.0,0.00044657,120]
[330324821,1719258243861,-1398.2,0.00044657,120]
[330324822,1719258243900,-623.96,0.00044657,120]
[330324823,1719258243938,-515.43,0.00044657,120]
[330324824,1719258243976,-811.57,0.00044657,120]
[330324825,1719258244015,-500.0,0.00044657,120]
[330324826,1719258244067,-500.0,0.00044657,120]
[330324827,1719258244109,-500.0,0.00044657,120]
[330324828,1719258244147,-500.0,0.00044657,120]
[330324829,1719258244187,-500.0,0.00044657,120]
[330324830,1719258244226,-500.0,0.00044657,120]
[330324831,1719258244266,-500.0,0.00044657,120]
[330324832,1719258244305,-500.0,0.00044657,120]
[330324833,1719258244348,-536.22751055,0.00044657,120]
[330324834,1719258244387,-669.18,0.00044657,120]
[330324835,1719258244425,-500.0,0.00044657,120]
[330324836,1719258244463,-500.0,0.00044657,120]
[330324837,1719258244502,-500.0,0.00044657,120]
[330324838,1719258244541,-500.0,0.00044657,120]
[330324839,1719258244580,-500.0,0.00044657,120]
[330324840,1719258244616,-500.0,0.00044657,120]
[330324841,1719258244660,-500.0,0.00044657,120]
[330324842,1719258244700,-500.0,0.00044657,120]
[330324843,1719258244741,-500.0,0.00044657,120]
[330324844,1719258244781,-500.0,0.00044657,120]
[330324845,1719258244822,-500.0,0.00044657,120]
[330324846,1719258244859,-500.0,0.00044657,120]
[330324847,1719258244896,-500.0,0.00044657,120]
[330324848,1719258244935,-500.0,0.00044657,120]
[330324849,1719258244972,-600.96,0.00044657,120]
[330324850,1719258245175,-639.21,0.00044657,120]
[330324851,1719258245215,-511.29,0.00044657,120]
[330324852,1719258245255,-1932.92,0.00044657,120]
[330324853,1719258245296,-542.44,0.00044657,120]
[330324854,1719258245336,-500.0,0.00044657,120]
[330324855,1719258245374,-603.28,0.00044657,120]
[330324856,1719258245411,-500.0,0.00044657,120]
[330324857,1719258245450,-500.0,0.00044657,120]
[330324858,1719258245487,-500.0,0.00044657,120]
[330324859,1719258245526,-500.0,0.00044657,120]
[330324860,1719258245564,-745.89,0.00044657,120]
[330324861,1719258245605,-500.0,0.00044657,120]
[330324862,1719258245646,-500.0,0.00044657,120]
[330324863,1719258245685,-990.35,0.00044657,120]
[330324864,1719258245724,-500.0,0.00044657,120]
[330324865,1719258245763,-500.0,0.00044657,120]
[330324866,1719258245801,-500.0,0.00044657,120]
[330324867,1719258245840,-500.0,0.00044657,120]
[330324868,1719258245879,-500.0,0.00044657,120]
[330324869,1719258245918,-500.0,0.00044657,120]
[330324870,1719258245958,-722.46,0.00044657,120]
[330324871,1719258245997,-1290.82,0.00044657,120]
[330324872,1719258246034,-312.90478152,0.00044657,120]
[330324873,1719258246076,-500.0,0.00044657,120]
[330324874,1719258246113,-1160.71,0.00044657,120]
[330324875,1719258246153,-500.0,0.00044657,120]
[330324876,1719258246192,-1238.72,0.00044657,120]
[330324877,1719258246231,-500.0,0.00044657,120]
[330324878,1719258246270,-500.0,0.00044657,120]
[330324879,1719258246309,-500.0,0.00044657,120]
[330324880,1719258246347,-501.29,0.00044657,120]
[330324881,1719258246385,-500.0,0.00044657,120]
[330324882,1719258246425,-500.0,0.00044657,120]
[330324883,1719258246464,-500.0,0.00044657,120]
[330324884,1719258246504,-500.0,0.00044657,120]
[330324885,1719258246542,-508.13195026,0.00044657,120]
[330324886,1719258246581,-660.18,0.00044657,120]
[330324887,1719258246623,-500.0,0.00044657,120]
[330324888,1719258246667,-500.0,0.00044657,120]
[330324889,1719258246707,-500.0,0.00044657,120]
[330324890,1719258246746,-1152.05,0.00044657,120]
[330324891,1719258246783,-537.71,0.00044657,120]
[330324892,1719258246818,-909.58,0.00044657,120]
[330324893,1719258246857,-500.0,0.00044657,120]
[330324894,1719258246894,-523.18641513,0.00044657,120]
[330324895,1719258246931,-500.0,0.00044657,120]
[330324896,1719258246966,-1089.47,0.00044657,120]
[330324897,1719258247003,-562.13,0.00044657,120]
[330324898,1719258247040,-264.31559595,0.00044657,120]
[330324899,1719258247078,-500.0,0.00044657,120]
[330324900,1719258247116,-500.0,0.00044657,120]
[330324901,1719258247155,-500.0,0.00044657,120]
[330324902,1719258247192,-500.0,0.00044657,120]
[330324903,1719258247228,-594.01,0.00044657,120]
[330324904,1719258247264,-596.12,0.00044657,30]
[330324905,1719258247301,-532.81,0.00044657,120]
[330324906,1719258247341,-500.0,0.00044657,120]
[330324907,1719258247378,-500.0,0.00044657,120]
[330324908,1719258247416,-610.99205072,0.00044657,120]
[330324909,1719258247455,-2670.65,0.00044657,120]
[330324910,1719258247494,-2835.37,0.00044657,120]
[330324911,1719258247531,-500.0,0.00044657,120]
[330324912,1719258247572,-500.0,0.00044657,120]
[330324913,1719258247610,-500.0,0.00044657,120]
[330324914,1719258247649,-500.0,0.00044657,120]
[330324915,1719258247686,-500.0,0.00044657,120]
[330324916,1719258247727,-1496.26,0.00044657,120]
[330324917,1719258247767,-833.92,0.00044657,120]
[330324918,1719258247805,-500.0,0.00044657,120]
[330324919,1719258247844,-1709.42,0.00044657,120]
[330324920,1719258247883,-1063.0,0.00044657,120]
[330324921,1719258247929,-1353.45,0.00044657,120]
[330324922,1719258247968,-599.03,0.00044657,120]
[330324923,1719258248007,-500.0,0.00044657,90]
[330324924,1719258248049,-500.0,0.00044657,120]
[330324925,1719258248089,-500.0,0.00044657,120]
[330324926,1719258248127,-500.0,0.00044657,120]
[330324927,1719258248166,-500.0,0.00044657,120]
[330324928,1719258248204,-3948.04,0.00044657,120]
[330324929,1719258248244,-1406.68,0.00044657,120]
[330324930,1719258248281,-800.27,0.00044657,120]
[330324931,1719258248323,-500.0,0.00044657,120]
[330324932,1719258248362,-500.0,0.00044657,120]
[330324933,1719258248401,-500.0,0.00044657,120]
[330324934,1719258248441,-1227.33,0.00044657,120]
[330324935,1719258248482,-8263.86,0.00044657,120]
[330324936,1719258248518,-1743.76,0.00044657,120]
[330324937,1719258248556,-209.9887578,0.00044657,120]
[330324938,1719258248593,-578.6042668,0.00044657,120]
[330324939,1719258248645,-1127.16,0.00044657,120]
[330324940,1719258248688,-500.0,0.00044657,120]
[330324941,1719258248727,-500.0,0.00044657,120]
[330324942,1719258248765,-500.0,0.00044657,120]
[330324943,1719258248804,-2016.78,0.00044657,120]
[330324944,1719258248842,-1126.39,0.00044657,120]
[330324945,1719258248881,-500.0,0.00044657,120]
[330324946,1719258248918,-1708.98,0.00044657,120]
[330324947,1719258248956,-500.0,0.00044657,120]
[330324948,1719258248995,-1099.7,0.00044657,120]
[330324949,1719258249038,-1426.31,0.00044657,120]
[330324950,1719258249080,-500.0,0.00044657,120]
[330324951,1719258249132,-1323.01,0.00044657,120]
[330324952,1719258249173,-1770.99,0.00044657,120]
[330324953,1719258249213,-500.0,0.00044657,120]
[330324954,1719258249256,-886.44,0.00044657,120]
[330324955,1719258249467,-500.0,0.00044657,120]
[330324956,1719258249509,-500.0,0.00044657,120]
[330324957,1719258249552,-500.0,0.00044657,120]
[330324958,1719258249593,-2248.85,0.00044657,120]
[330324959,1719258249636,-500.0,0.00044657,120]
[330324960,1719258249678,-1193.42,0.00044657,120]
[330324961,1719258249720,-2029.01,0.00044657,120]
[330324962,1719258249759,-500.0,0.00044657,120]
[330324963,1719258249799,-1627.12,0.00044657,120]
[330324964,1719258249846,-994.14,0.00044657,120]
[330324965,1719258249888,-500.0,0.00044657,120]
[330324966,1719258249927,-500.0,0.00044657,120]
[330324967,1719258249966,-500.0,0.00044657,120]
[330324968,1719258250006,-1443.36,0.00044657,120]
[330324969,1719258250045,-609.82,0.00044657,120]
[330324970,1719258250085,-500.0,0.00044657,120]
[330324971,1719258250125,-500.0,0.00044657,90]
[330324972,1719258250162,-500.0,0.00044657,120]
[330324973,1719258250200,-861.71,0.00044657,120]
[330324974,1719258250240,-1411.55,0.00044657,120]
[330324975,1719258250278,-500.0,0.00044657,120]
[330324976,1719258250315,-500.0,0.00044657,120]
[330324977,1719258250356,-678.0,0.00044657,120]
[330324978,1719258250395,-959.44,0.00044657,120]
[330324979,1719258250434,-14849.4,0.00044657,120]
[330324980,1719258250472,-500.0,0.00044657,120]
[330324981,1719258250511,-1025.11,0.00044657,120]
[330324982,1719258250547,-500.0,0.00044657,120]
[330324983,1719258250585,-587.50378381,0.00044657,120]
[330324984,1719258250624,-3657.05,0.00044657,120]
[330324985,1719258250666,-643.67,0.00044657,120]
[330324986,1719258250706,-500.0,0.00044657,120]
[330324987,1719258250746,-500.0,0.00044657,120]
[330324988,1719258250784,-921.25,0.00044657,120]
[330324989,1719258250824,-500.0,0.00044657,120]
[330324990,1719258250861,-500.0,0.00044657,120]
[330324991,1719258250904,-500.0,0.00044657,120]
[330324992,1719258250942,-500.0,0.00044657,120]
[330324993,1719258250980,-1522.85,0.00044657,120]
[330324994,1719258251018,-575.37,0.00044657,120]
[330324995,1719258251058,-566.76,0.00044657,120]
[330324996,1719258251099,-500.0,0.00044657,120]
[330324997,1719258251138,-500.0,0.00044657,120]
[330324998,1719258251178,-500.0,0.00044657,120]
[330324999,1719258251216,-909.24,0.00044657,120]
[330325000,1719258251254,-757.63,0.00044657,120]
[330325001,1719258251291,-786.54,0.00044657,120]
[330325002,1719258251330,-1133.73,0.00044657,120]
[330325003,1719258251368,-606.66,0.00044657,120]
[330325004,1719258251406,-500.0,0.00044657,120]
[330325005,1719258251443,-500.0,0.00044657,120]
[330325006,1719258251486,-500.0,0.00044657,120]
[330325007,1719258251537,-500.0,0.00044657,120]
[330325008,1719258251589,-500.0,0.00044657,120]
[330325009,1719258251636,-500.0,0.00044657,120]
[330325010,1719258251681,-2697.16,0.00044657,120]
[330325011,1719258251724,-500.0,0.00044657,120]
[330325012,1719258251764,-500.0,0.00044657,120]
[330325013,1719258251807,-500.0,0.00044657,120]
[330325014,1719258251850,-648.35,0.00044657,120]
[330325015,1719258251893,-500.0,0.00044657,120]
[330325016,1719258251936,-3832.32,0.00044657,120]
[330325017,1719258251980,-500.0,0.00044657,120]
[330325018,1719258252027,-7738.66,0.00044657,120]
[330325019,1719258252070,-511.82,0.00044657,120]
[330325020,1719258252123,-1651.64,0.00044657,120]
[330325021,1719258252165,-8679.15,0.00044657,120]
[330325022,1719258252208,-657.61,0.00044657,120]
[330325023,1719258252248,-782.34,0.00044657,120]
[330325024,1719258252288,-500.0,0.00044657,120]
[330325025,1719258252331,-3258.67,0.00044657,120]
[330325026,1719258252369,-500.0,0.00044657,120]
[330325027,1719258252408,-9116.37,0.00044657,120]
[330325028,1719258252447,-716.19,0.00044657,120]
[330325029,1719258252484,-500.0,0.00044657,120]
[330325030,1719258252522,-673.44,0.00044657,120]
[330325031,1719258252560,-1809.76,0.00044657,120]
[330325032,1719258252603,-500.0,0.00044657,120]
[330325033,1719258252644,-1062.08,0.00044657,120]
[330325034,1719258252684,-1023.54,0.00044657,120]
[330325035,1719258252727,-500.0,0.00044657,120]
[330325036,1719258252767,-534.28,0.00044657,120]
[330325037,1719258252813,-841.28,0.00044657,120]
[330325038,1719258252865,-1199.38,0.00044657,120]
[330325039,1719258252904,-500.0,0.00044657,120]
[330325040,1719258252947,-500.0,0.00044657,120]
[330325041,1719258252991,-500.0,0.00044657,120]
[330325042,1719258253038,-898.89,0.00044657,120]